fUSD/lending_fUSD_20240828
["ID","MTS","AMOUNT","RATE_DAILY","PERIOD"]
[336499120,1724884240210,-167.0,0.00020013,2]
[336499122,1724884240219,-302.0,0.0002021,2]
[336499124,1724884240229,-302.0,0.0002021,2]
[336499126,1724884240238,-302.0,0.0002021,2]
[336499128,1724884240250,-302.0,0.0002021,2]
[336499129,1724884240265,-302.0,0.0002021,2]
[336499131,1724884240275,-302.0,0.0002021,2]
[336499133,1724884240284,-31916.41637778,0.0002022,2]
[336499135,1724884240294,-150.0,0.00020358,2]
[336499137,1724884240304,-302.0,0.0002038,2]
[336499139,1724884240313,-2111.97144,0.0002039,2]
[336499140,1724884240324,-220.68149823,0.000204,2]
[336499141,1724884240333,-500.0,0.00020435,2]
[336499142,1724884240344,-302.0,0.0002047,2]
[336499143,1724884240354,-302.0,0.0002048,2]
[336499144,1724884240364,-302.0,0.0002048,2]
[336499145,1724884240374,-900.4459,0.0002048,2]
[336499146,1724884240384,-7500.0,0.0002049,2]
[336499147,1724884240394,-302.0,0.0002049,2]
[336499148,1724884240403,-302.0,0.0002049,2]
[336499149,1724884240413,-302.0,0.0002049,2]
[336499150,1724884240422,-302.0,0.0002049,2]
[336499151,1724884240432,-302.0,0.0002049,2]
[336499152,1724884240441,-598.6885,0.0002049,2]
[336499153,1724884240450,-318.6761,0.0002049,2]
[336499154,1724884240460,-181.6289,0.0002049,2]
[336499155,1724884240469,-181.69711588,0.00020497,2]
[336499156,1724884240478,-43757.68806045,0.000205,2]
[336499158,1724884240497,-38190.85863955,0.000205,2]
[336499160,1724884240506,-164.03405319,0.000205,2]
[336499162,1724884240516,-186.22651353,0.000205,2]
[336499164,1724884240525,-261.475,0.000205,2]
[336499166,1724884240535,-900.0,0.000205,7]
[336499168,1724884240544,-161.0748828,0.000205,2]
[336499169,1724884240553,-500.0,0.00020573,2]
[336499171,1724884240562,-150.0,0.00020575,4]
[336499173,1724884240571,-19459.30887146,0.0002058,4]
[336499176,1724884240585,-12736.54400959,0.0002058,4]
[336499178,1724884240595,-1130.54686907,0.0002058,4]
[336499180,1724884240606,-807.73443717,0.0002058,4]
[336499183,1724884240629,-1840.0,0.0002058,4]
[336499186,1724884240641,-4153.22598848,0.0002058,4]
[336499188,1724884240658,-4711.68595793,0.0002058,4]
[336499190,1724884240669,-151.18,0.0002058,2]
[336499192,1724884240678,-151.18,0.0002058,2]
[336499194,1724884240689,-151.18,0.0002058,2]
[336499196,1724884240698,-342.19883449,0.00020587,2]
[336499198,1724884240708,-5407.1867824,0.0002059,4]
[336499200,1724884240724,-1244.6844767,0.0002059,4]
[336499202,1724884240736,-795.53578029,0.0002059,4]
[336499204,1724884240753,-1355.58490402,0.0002059,4]
[336499206,1724884240764,-1596.3,0.0002059,4]
[336499209,1724884240783,-302.0,0.0002049,2]
[336499211,1724884240792,-4547.05676779,0.0002059,4]
[336499213,1724884240801,-328819.671647,0.0002059,4]
[336499215,1724884240811,-430734.43943353,0.0002059,4]
[336499217,1724884240822,-16263.23760647,0.0002059,4]
[336499219,1724884240832,-151.18,0.0002059,2]
[336499221,1724884240842,-151.18,0.0002059,2]
[336499223,1724884240851,-151.18,0.0002059,2]
[336499225,1724884240860,-151.18,0.0002059,2]
[336499227,1724884240870,-151.18,0.0002059,2]
[336499229,1724884240879,-151.18,0.0002059,2]
[336499231,1724884240888,-151.18,0.0002059,2]
[336499232,1724884240897,-151.18,0.0002059,2]
[336499235,1724884240907,-151.18,0.0002059,2]
[336499237,1724884240917,-151.18,0.0002059,2]
[336499239,1724884240927,-151.18,0.0002059,2]
[336499241,1724884240938,-151.18,0.0002059,2]
[336499243,1724884240948,-151.18,0.0002059,2]
[336499245,1724884240957,-151.18,0.0002059,2]
[336499247,1724884240967,-151.18,0.0002059,2]
[336499248,1724884240977,-151.18,0.0002059,2]
[336499250,1724884240986,-151.18,0.0002059,2]
[336499252,1724884240998,-151.18,0.0002059,2]
[336499254,1724884241007,-151.18,0.0002059,2]
[336499256,1724884241016,-715.84980781,0.0002059,2]
[336499258,1724884241025,-2737.59067592,0.00020597,2]
[336499260,1724884241034,-604.0,0.000206,2]
[336499262,1724884241043,-2670.84685159,0.000206,2]
[336499264,1724884241052,-2500.0,0.000206,5]
[336499266,1724884241061,-353785.74494273,0.000206,15]
[336499268,1724884241072,-285.33484743,0.000206,15]
[336499270,1724884241083,-1047.97004866,0.000206,15]
[336499272,1724884241094,-1581.58568819,0.000206,15]
[336499274,1724884241104,-4626.59156538,0.000206,15]
[336499278,1724884241129,-2336.89922027,0.000206,15]
[336499280,1724884241140,-12166.95600629,0.000206,15]
[336499285,1724884241182,-540.15952284,0.000206,15]
[336499289,1724884241204,-302.0,0.0002049,2]
[336499291,1724884241214,-333.093,0.000206,15]
[336499457,1724884243622,-324.24499998,0.00016732,2]
[336499459,1724884243632,-302.0,0.0002049,2]
[336499460,1724884243641,-302.0,0.0002049,2]
[336499461,1724884243653,-302.0,0.0002049,2]
[336499462,1724884243663,-302.0,0.0002049,2]
[336499463,1724884243672,-302.0,0.0002049,2]
[336499464,1724884243681,-302.0,0.0002049,2]
[336499465,1724884243691,-302.0,0.0002049,2]
[336499466,1724884243701,-9.3627987,0.0002049,2]
[336499467,1724884243712,-292.6372013,0.0002049,2]
[336499468,1724884243722,-302.0,0.0002049,2]
[336499469,1724884243732,-302.0,0.0002049,2]
[336499470,1724884243743,-302.0,0.0002049,2]
[336499471,1724884243752,-302.0,0.0002049,2]
[336499472,1724884243761,-1434.14250908,0.000206,15]
[336499473,1724884243772,-311.7686698,0.000206,15]
[336499474,1724884243783,-661.3131406,0.000206,15]
[336499475,1724884243794,-7420.36486124,0.000206,15]
[336499476,1724884243803,-3572.3045006,0.000206,15]
[336499477,1724884243814,-5503.0,0.000206,15]
[336499478,1724884243826,-7764.0017081,0.000206,15]
[336499479,1724884243837,-444.24779552,0.000206,15]
[336499480,1724884243848,-697.23822464,0.000206,15]
[336499481,1724884243859,-340.68338463,0.000206,15]
[336499482,1724884243870,-338.33948636,0.000206,15]
[336499483,1724884245443,-1000.0,0.000206,15]
[336499484,1724884245485,-6679.72932,0.000206,15]
[336499485,1724884245498,-2982.26387727,0.000206,15]
[336499486,1724884245603,-993.12736041,0.000206,15]
[336499487,1724884245614,-1082.91734936,0.000206,15]
[336499488,1724884245626,-484.33001,0.000206,15]
[336499489,1724884245639,-754.9399989,0.000206,15]
[336499490,1724884245655,-571.571,0.000206,15]
[336499491,1724884245666,-529.685291,0.000206,15]
[336499492,1724884245679,-316.615,0.000206,15]
[336499493,1724884245690,-14038.9224587,0.000206,15]
[336499494,1724884245701,-3265.01060924,0.000206,15]
[336499495,1724884245714,-38710.46975587,0.000206,15]
[336499498,1724884245755,-302.0,0.0002049,2]
[336499500,1724884245766,-227.46944493,0.000206,15]
[336499502,1724884245777,-521.31163644,0.000206,15]
[336499503,1724884245790,-6644.55524363,0.000206,15]
[336499504,1724884245803,-305.67881732,0.000206,15]
[336499505,1724884245815,-674.16794245,0.000206,15]
[336499506,1724884245836,-684.93719709,0.000206,15]
[336499509,1724884245848,-1516.6,0.000206,15]
[336499511,1724884245860,-7440.45079688,0.000206,15]
[336499512,1724884245896,-10657.64146005,0.000206,15]
[336499513,1724884245908,-463.3999995,0.000206,15]
[336499514,1724884246577,-302.0,0.0002049,2]
[336499515,1724884246587,-302.0,0.0002049,2]
[336499516,1724884246596,-302.0,0.0002049,2]
[336499517,1724884246605,-100.8,0.0002049,2]
[336499518,1724884246845,-201.2,0.0002049,2]
[336499519,1724884246854,-302.0,0.0002049,2]
[336499520,1724884246864,-302.0,0.0002049,2]
[336499521,1724884246873,-302.0,0.0002049,2]
[336499522,1724884246883,-302.0,0.0002049,2]
[336499523,1724884246892,-302.0,0.00020551,2]
[336499524,1724884246901,-302.0,0.0002057,2]
[336499525,1724884246910,-302.0,0.0002057,2]
[336499526,1724884246919,-25639.84928125,0.000206,15]
[336499527,1724884246931,-907.5,0.000206,15]
[336499528,1724884246941,-3614.48,0.000206,15]
[336499529,1724884246953,-1529.47956354,0.000206,15]
[336499530,1724884246966,-660.54195458,0.000206,15]
[336499531,1724884246977,-1326.68,0.000206,15]
[336499532,1724884246988,-310.75725806,0.000206,15]
[336499533,1724884246999,-65078.334825,0.000206,15]
[336499534,1724884247011,-1417.56443875,0.000206,15]
[336499535,1724884247023,-934.61953354,0.000206,15]
[336499536,1724884247036,-30239.88879568,0.000206,15]
[336499537,1724884247067,-302.0,0.0002057,2]
[336499538,1724884247076,-226.61594051,0.000206,15]
[336499539,1724884247089,-10401.00682633,0.000206,15]
[336499540,1724884247116,-508.07079341,0.000206,15]
[336499541,1724884247127,-2735.70533876,0.000206,15]
[336499542,1724884247174,-4417.52516995,0.000206,15]
[336499543,1724884247188,-354.9593312,0.000206,15]
[336499544,1724884247235,-832.13,0.000206,15]
[336499545,1724884271241,1050.0,0.0001,2]
[336499546,1724884546033,2000.0,0.00024,120]
[336499547,1724884559283,2000.0,0.00024,120]
[336499548,1724884567811,2000.0,0.00024,120]
[336499549,1724884575646,2000.0,0.00024,120]
[336499550,1724884586441,2000.0,0.00024,120]
[336499551,1724884595544,2000.0,0.00024,120]
[336499553,1724884780350,-150.0,0.000125,2]
[336499554,1724884818510,241.65,0.000116,2]
[336499558,1724884876724,-200.0,0.00025014,120]
[336499559,1724884876779,-1000.0,0.00026,60]
[336499560,1724884876837,-365.33,0.00026728,120]
[336499561,1724884876896,-800.0,0.00026986,120]
[336499562,1724884876948,-800.0,0.00026986,120]
[336499563,1724884877009,-150.0,0.00027403,120]
[336499564,1724884877065,-150.0,0.0002747,120]
[336499565,1724884877117,-150.0,0.00027581,120]
[336499566,1724884877173,-150.0,0.00027983,120]
[336499567,1724884877223,-550.183205,0.00027996,120]
[336499568,1724884877278,-2000.0,0.00028096,120]
[336499569,1724884877327,-150.0,0.00028171,120]
[336499570,1724884877381,-150.0,0.00028338,120]
[336499571,1724884877435,-150.0,0.00028456,120]
[336499572,1724884877487,-500.0,0.00028596,120]
[336499573,1724884877543,-150.0,0.00028717,120]
[336499574,1724884877596,-1158.50196188,0.00028767,120]
[336499575,1724884877649,-150.0,0.00028791,120]
[336499576,1724884877705,-150.0,0.00028818,120]
[336499577,1724884877779,-150.0,0.000289,120]
[336499578,1724884877833,-500.0,0.00028963,120]
[336499579,1724884877890,-365.33,0.00029158,120]
[336499580,1724884877945,-150.0,0.00029183,120]
[336499581,1724884878002,-500.0,0.00029196,120]
[336499582,1724884878054,-200.0,0.00029196,120]
[336499583,1724884878109,-179.56,0.00029435,120]
[336499584,1724884878163,-150.0,0.00029479,120]
[336499585,1724884878214,-150.0,0.00029793,120]
[336499586,1724884878265,-150.0,0.00029826,120]
[336499587,1724884878318,-150.0,0.00029992,120]
[336499588,1724884878373,-1000.0,0.0003,120]
[336499589,1724884878424,-150.0,0.00030192,120]
[336499590,1724884878477,-150.0,0.00030284,120]
[336499591,1724884878529,-150.0,0.00030396,120]
[336499592,1724884878579,-500.0,0.00030444,120]
[336499593,1724884878630,-150.0,0.00030618,120]
[336499594,1724884878684,-150.0,0.000307,120]
[336499595,1724884878736,-150.0,0.00030768,120]
[336499596,1724884878794,-150.0,0.0003105,120]
[336499597,1724884878860,-150.0,0.00031983,120]
[336499598,1724884878925,-150.0,0.00032058,120]
[336499599,1724884878981,-150.0,0.00032966,120]
[336499600,1724884879036,-150.0,0.00032983,120]
[336499601,1724884879093,-1177.23760886,0.00033,90]
[336499602,1724884879149,-9353.32,0.00033151,120]
[336499603,1724884879202,-150.0,0.00033227,120]
[336499604,1724884879258,-150.0,0.00033259,120]
[336499605,1724884879311,-150.0,0.00033762,120]
[336499606,1724884879366,-150.0,0.00033963,120]
[336499607,1724884879418,-1000.0,0.00034,120]
[336499608,1724884879742,-150.0,0.00034075,120]
[336499609,1724884879815,-150.0,0.00034128,120]
[336499610,1724884879888,-200.0,0.00035,120]
[336499611,1724884879951,-150.0,0.00035025,120]
[336499612,1724884880016,-150.0,0.00035217,120]
[336499613,1724884880075,-150.0,0.0003529,120]
[336499614,1724884880133,-150.0,0.00035346,120]
[336499615,1724884880189,-150.0,0.0003591,120]
[336499616,1724884880249,-150.0,0.00036124,120]
[336499617,1724884880309,-150.0,0.00036289,120]
[336499618,1724884880367,-150.0,0.00036685,120]
[336499619,1724884880426,-150.0,0.00037168,120]
[336499620,1724884880480,-150.0,0.00037661,120]
[336499621,1724884880535,-150.0,0.00037832,120]
[336499622,1724884880589,-200.0,0.00037891,120]
[336499623,1724884880642,-1000.0,0.00038,120]
[336499624,1724884880694,-150.777267,0.00038,60]
[336499625,1724884880748,-500.0,0.00038356,120]
[336499626,1724884880802,-500.0,0.00038356,120]
[336499627,1724884880856,-500.0,0.00038356,120]
[336499628,1724884880912,-427.93195647,0.00038356,120]
[336499629,1724884880967,-500.0,0.00038356,120]
[336499630,1724884881020,-503.44755777,0.00038356,120]
[336499631,1724884881080,-500.0,0.00038356,120]
[336499632,1724884881132,-500.0,0.00038356,120]
[336499633,1724884881187,-500.0,0.00038356,120]
[336499634,1724884881240,-500.0,0.00038356,120]
[336499635,1724884881293,-500.0,0.00038356,120]
[336499636,1724884881347,-500.0,0.00038356,120]
[336499637,1724884881397,-500.0,0.00038356,120]
[336499638,1724884881446,-294.77870764,0.00038356,120]
[336499639,1724884881497,-500.0,0.00038356,120]
[336499640,1724884881548,-500.0,0.00038356,120]
[336499641,1724884881602,-500.0,0.00038356,120]
[336499642,1724884881656,-500.0,0.00038356,120]
[336499643,1724884881704,-500.0,0.00038356,120]
[336499644,1724884881759,-500.0,0.00038356,120]
[336499645,1724884881816,-500.0,0.00038356,120]
[336499646,1724884881872,-500.0,0.00038356,120]
[336499647,1724884881926,-500.0,0.00038356,120]
[336499648,1724884881984,-500.0,0.00038356,120]
[336499649,1724884882038,-500.0,0.00038356,120]
[336499650,1724884882093,-500.0,0.00038356,120]
[336499651,1724884882146,-500.0,0.00038356,120]
[336499652,1724884882199,-500.0,0.00038356,120]
[336499653,1724884882253,-500.0,0.00038356,120]
[336499654,1724884882309,-501.77297661,0.00038356,120]
[336499655,1724884882362,-500.0,0.00038356,120]
[336499656,1724884882412,-500.0,0.00038356,120]
[336499657,1724884882460,-500.0,0.00038356,120]
[336499658,1724884882515,-500.0,0.00038356,120]
[336499659,1724884882564,-500.0,0.00038356,120]
[336499660,1724884882612,-500.0,0.00038356,120]
[336499661,1724884882665,-500.0,0.00038356,120]
[336499662,1724884882719,-500.0,0.00038356,120]
[336499663,1724884882768,-500.0,0.00038356,120]
[336499664,1724884882821,-500.0,0.00038356,120]
[336499665,1724884882873,-422.74762991,0.00038356,120]
[336499666,1724884882924,-500.0,0.00038356,120]
[336499667,1724884882977,-500.0,0.00038356,120]
[336499668,1724884883031,-500.0,0.00038356,120]
[336499669,1724884883081,-500.0,0.00038356,120]
[336499670,1724884883132,-500.0,0.00038356,120]
[336499671,1724884883184,-500.0,0.00038356,120]
[336499672,1724884883233,-500.0,0.00038356,120]
[336499673,1724884883282,-500.0,0.00038356,120]
[336499674,1724884883328,-500.0,0.00038356,120]
[336499675,1724884883382,-500.0,0.00038356,120]
[336499676,1724884883432,-500.0,0.00038356,120]
[336499677,1724884883486,-500.0,0.00038356,120]
[336499678,1724884883538,-225.63613261,0.00038356,120]
[336499679,1724884883595,-500.0,0.00038356,120]
[336499680,1724884883651,-500.0,0.00038356,120]
[336499681,1724884883706,-500.0,0.00038356,120]
[336499682,1724884883762,-500.0,0.00038356,120]
[336499683,1724884883817,-500.0,0.00038356,120]
[336499684,1724884883870,-697.73,0.00038356,120]
[336499685,1724884883927,-500.0,0.00038356,120]
[336499686,1724884883985,-500.0,0.00038356,120]
[336499687,1724884884040,-500.0,0.00038356,120]
[336499688,1724884884100,-298.73031742,0.00038356,120]
[336499689,1724884884154,-500.0,0.00038356,120]
[336499690,1724884884209,-500.0,0.00038356,120]
[336499691,1724884884263,-500.0,0.00038356,120]
[336499692,1724884884314,-500.0,0.00038356,120]
[336499693,1724884884366,-500.0,0.00038356,120]
[336499694,1724884884420,-500.0,0.00038356,120]
[336499695,1724884884471,-850.13,0.00038356,120]
[336499696,1724884884523,-589.55,0.00038356,120]
[336499697,1724884884575,-500.0,0.00038356,120]
[336499698,1724884884625,-500.0,0.00038356,120]
[336499699,1724884884677,-500.0,0.00038356,120]
[336499700,1724884884731,-509.91,0.00038356,120]
[336499701,1724884884785,-1465.96,0.00038356,120]
[336499702,1724884884840,-500.0,0.00038356,120]
[336499703,1724884884889,-533.93,0.00038356,120]
[336499704,1724884884957,-205.52957367,0.00038356,120]
[336499705,1724884885013,-2694.72,0.00038356,120]
[336499706,1724884885066,-595.08,0.00038356,120]
[336499707,1724884885117,-500.0,0.00038356,120]
[336499708,1724884885166,-500.0,0.00038356,120]
[336499709,1724884885218,-500.0,0.00038356,120]
[336499710,1724884885280,-500.0,0.00038356,120]
[336499711,1724884885549,-663.73311167,0.00038356,120]
[336499712,1724884885603,-1838.96,0.00038356,120]
[336499713,1724884885656,-500.0,0.00038356,120]
[336499714,1724884885706,-500.0,0.00038356,120]
[336499715,1724884885759,-500.0,0.00038356,120]
[336499716,1724884885809,-500.0,0.00038356,120]
[336499717,1724884885875,-500.0,0.00038356,120]
[336499718,1724884885928,-500.0,0.00038356,120]
[336499719,1724884885984,-500.0,0.00038356,120]
[336499720,1724884886038,-500.0,0.00038356,120]
[336499721,1724884886088,-500.0,0.00038356,120]
[336499722,1724884886141,-500.0,0.00038356,120]
[336499723,1724884886192,-1044.81,0.00038356,120]
[336499724,1724884886242,-2158.9,0.00038356,120]
[336499725,1724884886294,-500.0,0.00038356,120]
[336499726,1724884886344,-500.0,0.00038356,120]
[336499727,1724884886394,-500.0,0.00038356,120]
[336499728,1724884886445,-500.0,0.00038356,120]
[336499729,1724884886496,-550.43,0.00038356,120]
[336499730,1724884886551,-500.0,0.00038356,120]
[336499731,1724884886605,-666.55,0.00038356,120]
[336499732,1724884886660,-500.0,0.00038356,120]
[336499733,1724884886714,-500.0,0.00038356,120]
[336499734,1724884886770,-500.0,0.00038356,120]
[336499735,1724884886822,-729.47,0.00038356,120]
[336499736,1724884886875,-500.0,0.00038356,120]
[336499737,1724884886927,-500.0,0.00038356,120]
[336499738,1724884886982,-663.48,0.00038356,120]
[336499739,1724884887036,-558.52,0.00038356,120]
[336499740,1724884887091,-500.0,0.00038356,120]
[336499741,1724884887145,-512.21,0.00038356,120]
[336499742,1724884887199,-732.03,0.00038356,120]
[336499743,1724884887250,-3349.64,0.00038356,120]
[336499744,1724884887300,-500.0,0.00038356,120]
[336499745,1724884887350,-1265.92,0.00038356,120]
[336499746,1724884887403,-500.0,0.00038356,120]
[336499747,1724884887454,-500.0,0.00038356,120]
[336499748,1724884887504,-500.0,0.00038356,120]
[336499749,1724884887563,-500.0,0.00038356,120]
[336499750,1724884887613,-1077.58,0.00038356,120]
[336499751,1724884887661,-508.03180499,0.00038356,120]
[336499752,1724884887712,-500.0,0.00038356,120]
[336499753,1724884887765,-541.67,0.00038356,120]
[336499754,1724884887820,-500.0,0.00038356,120]
[336499755,1724884887878,-785.25,0.00038356,120]
[336499756,1724884887946,-500.0,0.00038356,120]
[336499757,1724884888001,-518.37088323,0.00038356,120]
[336499759,1724884888058,-500.0,0.00038356,120]
[336499760,1724884888110,-500.0,0.00038356,120]
[336499761,1724884888162,-500.0,0.00038356,120]
[336499762,1724884888218,-500.0,0.00038356,120]
[336499763,1724884888266,-990.08,0.00038356,120]
[336499764,1724884888315,-246.24339573,0.00038356,120]
[336499765,1724884888370,-500.0,0.00038356,120]
[336499766,1724884888420,-500.0,0.00038356,120]
[336499767,1724884888469,-500.0,0.00038356,120]
[336499768,1724884888523,-500.0,0.00038356,120]
[336499769,1724884888573,-394.80194244,0.00038356,120]
[336499770,1724884888623,-2000.0,0.00038356,120]
[336499771,1724884888673,-500.0,0.00038356,120]
[336499772,1724884888730,-523.9,0.00038356,120]
[336499773,1724884888784,-1500.0,0.00038356,120]
[336499774,1724884888840,-816.26,0.00038356,120]
[336499775,1724884888890,-498.36617202,0.00038356,120]
[336499776,1724884888943,-500.0,0.00038356,120]
[336499777,1724884888998,-500.0,0.00038356,120]
[336499778,1724884889052,-1457.14,0.00038356,120]
[336499779,1724884889102,-1051.77,0.00038356,120]
[336499780,1724884889154,-1856.99,0.00038356,120]
[336499781,1724884889210,-532.35175818,0.00038356,120]
[336499782,1724884889267,-500.0,0.00038356,120]
[336499783,1724884889324,-500.0,0.00038356,120]
[336499784,1724884889391,-952.58,0.00038356,120]
[336499785,1724884889461,-500.0,0.00038356,120]
[336499786,1724884889529,-1626.11,0.00038356,120]
[336499787,1724884889605,-500.0,0.00038356,120]
[336499788,1724884889665,-500.0,0.00038356,120]
[336499789,1724884889733,-500.0,0.00038356,120]
[336499790,1724884889794,-1554.93,0.00038356,120]
[336499791,1724884889849,-766.82,0.00038356,120]
[336499792,1724884889908,-500.0,0.00038356,120]
[336499793,1724884889970,-500.0,0.00038356,120]
[336499794,1724884890032,-500.0,0.00038356,120]
[336499795,1724884890088,-1534.0,0.00038356,120]
[336499796,1724884890145,-744.59,0.00038356,120]
[336499797,1724884890198,-1886.64,0.00038356,120]
[336499798,1724884890249,-500.0,0.00038356,120]
[336499799,1724884890301,-506.47698502,0.00038356,120]
[336499800,1724884890352,-1133.11,0.00038356,120]
[336499801,1724884890404,-500.0,0.00038356,120]
[336499802,1724884890455,-500.0,0.00038356,120]
[336499803,1724884890509,-500.0,0.00038356,120]
[336499804,1724884890559,-500.0,0.00038356,120]
[336499805,1724884890612,-500.0,0.00038356,120]
[336499806,1724884890667,-500.0,0.00038356,120]
[336499807,1724884890736,-500.0,0.00038356,120]
[336499808,1724884890791,-655.22,0.00038356,120]
[336499809,1724884890844,-507.38,0.00038356,120]
[336499810,1724884890896,-500.95874433,0.00038356,120]
[336499811,1724884890949,-1294.17,0.00038356,120]
[336499812,1724884891001,-1911.62,0.00038356,120]
[336499813,1724884891052,-500.0,0.00038356,120]
[336499814,1724884891100,-639.89,0.00038356,120]
[336499815,1724884891380,-500.0,0.00038356,120]
[336499816,1724884891429,-500.0,0.00038356,120]
[336499817,1724884891479,-2257.58,0.00038356,120]
[336499818,1724884891532,-500.0,0.00038356,120]
[336499819,1724884891581,-500.0,0.00038356,120]
[336499820,1724884891634,-500.0,0.00038356,120]
[336499821,1724884891686,-500.0,0.00038356,120]
[336499822,1724884891744,-1925.3,0.00038356,120]
[336499823,1724884891797,-500.0,0.00038356,120]
[336499824,1724884891851,-521.34649736,0.00038356,120]
[336499825,1724884891907,-500.0,0.00038356,120]
[336499826,1724884891959,-500.0,0.00038356,120]
[336499827,1724884892018,-1162.55,0.00038356,120]
[336499828,1724884892074,-732.63,0.00038356,120]
[336499829,1724884892127,-500.0,0.00038356,120]
[336499830,1724884892181,-703.93,0.00038356,120]
[336499831,1724884892238,-500.0,0.00038356,120]
[336499832,1724884892287,-500.0,0.00038356,120]
[336499833,1724884892336,-500.0,0.00038356,120]
[336499834,1724884892387,-511.59778379,0.00038356,120]
[336499835,1724884892436,-500.0,0.00038356,120]
[336499836,1724884892486,-500.0,0.00038356,120]
[336499837,1724884892533,-501.14957341,0.00038356,120]
[336499838,1724884892584,-1621.27,0.00038356,120]
[336499839,1724884892653,-438.66716825,0.00038356,120]
[336499840,1724884892707,-665.7,0.00038356,120]
[336499841,1724884892760,-525.0586402,0.00038356,120]
[336499842,1724884892810,-500.0,0.00038356,120]
[336499843,1724884892867,-1040.14,0.00038356,120]
[336499844,1724884892929,-498.91944478,0.00038356,120]
[336499845,1724884892982,-500.0,0.00038356,120]
[336499846,1724884893037,-500.0,0.00038356,120]
[336499847,1724884893093,-500.0,0.00038356,120]
[336499848,1724884893145,-500.0,0.00038356,120]
[336499849,1724884893197,-1280.06,0.00038356,120]
[336499850,1724884893250,-1132.55,0.00038356,120]
[336499851,1724884893299,-500.0,0.00038356,120]
[336499852,1724884893347,-481.79472885,0.00038356,120]
[336499853,1724884893399,-500.0,0.00038356,120]
[336499854,1724884893449,-1637.12,0.00038356,120]
[336499855,1724884893516,-500.0,0.00038356,120]
[336499856,1724884893567,-500.0,0.00038356,120]
[336499857,1724884893636,-500.0,0.00038356,120]
[336499858,1724884893692,-1891.29,0.00038356,120]
[336499859,1724884893764,-500.0,0.00038356,120]
[336499860,1724884893823,-500.0,0.00038356,120]
[336499861,1724884893894,-558.99526975,0.00038356,120]
[336499862,1724884893955,-500.0,0.00038356,120]
[336499863,1724884894028,-500.0,0.00038356,120]
[336499864,1724884894097,-1890.25,0.00038356,120]
[336499865,1724884894155,-500.0,0.00038356,120]
[336499866,1724884894228,-500.0,0.00038356,120]
[336499867,1724884894283,-500.0,0.00038356,120]
[336499868,1724884894338,-500.0,0.00038356,120]
[336499869,1724884894394,-500.0,0.00038356,120]
[336499870,1724884894448,-3518.22,0.00038356,120]
[336499871,1724884894500,-1436.48,0.00038356,120]
[336499872,1724884894554,-287.51481887,0.00038356,120]
[336499873,1724884894605,-1232.49,0.00038356,120]
[336499874,1724884894658,-500.0,0.00038356,120]
[336499875,1724884894708,-500.0,0.00038356,120]
[336499876,1724884894757,-1971.42,0.00038356,120]
[336499877,1724884894810,-510.39182868,0.00038356,120]
[336499878,1724884894865,-3418.0,0.00038356,120]